bitfinex-derivatives/quotes_SOLF0:USTF0_20260302
["timestamp","ask_amount","ask_price","bid_price","bid_amount"]
[1772475428982,15.91378654,87.299,87.233,10.65084252]
[1772475429178,6.99305544,87.3,87.226,16.31563262]
[1772475429179,15.91378654,87.291,87.226,16.31563262]
[1772475429383,15.91378654,87.312,87.231,16.31563262]
[1772475429585,15.91378654,87.312,87.248,16.31563262]
[1772475429879,10.307,87.304,87.248,16.31563262]
[1772475430083,10.307,87.304,87.251,10.313]
[1772475431278,15.91378654,87.312,87.248,16.31563262]
[1772475432181,10.306,87.311,87.259,10.312]
[1772475433185,10.306,87.311,87.263,10.312]
[1772475434286,15.91378654,87.312,87.265,10.311]
[1772475434583,15.91378654,87.328,87.265,16.31563262]
[1772475434783,306.17882569,87.337,87.289,16.31563262]
[1772475434988,15.91378654,87.336,87.279,10.65084252]
[1772475435184,15.91378654,87.336,87.273,10.65084252]
[1772475435386,10.306,87.312,87.268,10.65084252]
[1772475435688,15.91378654,87.336,87.267,10.65084252]
[1772475435888,15.91378654,87.336,87.263,16.31563262]
[1772475436082,15.91378654,87.336,87.268,10.65084252]
[1772475436278,15.91378654,87.336,87.27,15.1806431]
[1772475437083,15.91378654,87.336,87.28,15.1806431]
[1772475438390,15.69906041,87.333,87.279,10.65084252]
[1772475439289,10.304,87.328,87.286,10.65084252]
[1772475439691,15.69906041,87.333,87.286,10.65084252]
[1772475440292,15.69906041,87.333,87.287,10.65084252]
[1772475441584,10.304,87.332,87.287,10.65084252]
[1772475441888,10.304,87.332,87.288,10.65084252]
[1772475442089,10.304,87.332,87.264,15.37427762]
[1772475442090,15.69906041,87.331,87.284,0.00084252]
[1772475442292,15.69906041,87.304,87.252,14.09789953]
[1772475442493,15.69906041,87.304,87.231,15.37427762]
[1772475442693,10.31,87.276,87.223,10.316]
[1772475443291,15.69906041,87.268,87.215,14.09789953]
[1772475443496,15.69906041,87.268,87.214,15.37427762]
[1772475443698,15.69906041,87.309,87.219,15.37427762]
[1772475443996,26.00706041,87.295,87.237,10.315]
[1772475444197,15.69906041,87.294,87.237,10.315]
[1772475444391,13.99193492,87.357,87.203,23.26430472]
[1772475444392,15.69906041,87.329,87.241,15.37427762]
[1772475444987,15.69906041,87.319,87.263,10.312]
[1772475446198,10.306,87.316,87.263,10.312]
[1772475447399,10.306,87.316,87.271,10.311]
[1772475447699,15.69906041,87.308,87.242,15.37427762]
[1772475449195,10.309,87.29,87.245,10.314]
[1772475451095,15.69906041,87.308,87.253,15.37427762]
[1772475452396,15.69906041,87.308,87.26,10.312]
[1772475452596,15.69906041,87.308,87.253,15.37427762]
[1772475453098,10.307,87.307,87.254,25.68727762]
[1772475453690,10.307,87.307,87.255,15.37427762]
[1772475455398,15.69906041,87.308,87.255,15.37427762]
[1772475456300,10.307,87.307,87.255,15.37427762]
[1772475456706,15.69906041,87.308,87.255,15.37427762]
[1772475457292,15.69906041,87.339,87.263,15.37427762]
[1772475458802,15.69906041,87.339,87.282,15.37427762]
[1772475459700,15.69906041,87.336,87.266,15.37427762]
[1772475460504,15.69906041,87.329,87.28,10.31]
[1772475460903,15.69906041,87.329,87.266,15.37427762]
[1772475462207,15.69906041,87.329,87.286,10.309]
[1772475462808,15.69906041,87.329,87.269,15.37427762]
[1772475464204,10.304,87.328,87.279,10.31]
[1772475464408,15.69906041,87.327,87.279,10.31]
[1772475464704,15.69906041,87.327,87.269,15.37427762]
[1772475465099,15.69906041,87.323,87.272,10.311]
[1772475465305,15.69906041,87.323,87.269,15.37427762]
[1772475465502,306.97041175,87.35,87.275,15.37427762]
[1772475465700,15.69906041,87.359,87.291,15.37427762]
[1772475466808,10.301,87.355,87.309,10.306]
[1772475468910,10.301,87.355,87.315,10.306]
[1772475470210,15.69906041,87.359,87.315,10.306]
[1772475470611,15.69906041,87.359,87.308,10.306]
[1772475470805,15.83879209,87.344,87.291,15.37427762]
[1772475471013,15.83879209,87.344,87.277,10.31]
[1772475471410,15.83879209,87.344,87.261,16.01063767]
[1772475471805,15.83879209,87.346,87.261,16.01063767]
[1772475472005,15.83879209,87.346,87.272,16.01063767]
[1772475472610,10.303,87.342,87.29,10.309]
[1772475474007,10.303,87.342,87.262,20.624]
[1772475474008,10.302,87.349,87.297,16.01063767]
[1772475474511,15.83879209,87.362,87.297,16.01063767]
[1772475475304,309.14767095,87.379,87.297,16.01063767]
[1772475475305,10.303,87.337,87.297,16.01063767]
[1772475475507,15.83879209,87.348,87.297,16.01063767]
[1772475475910,15.83879209,87.372,87.297,16.01063767]
[1772475476510,10.299,87.371,87.319,10.305]
[1772475476715,10.299,87.371,87.32,16.01063767]
[1772475477513,15.83879209,87.372,87.32,16.01063767]
[1772475477514,10.3,87.365,87.32,16.01063767]
[1772475478209,15.83879209,87.372,87.303,16.01063767]
[1772475478516,309.14767095,87.379,87.286,16.01063767]
[1772475478517,15.83879209,87.369,87.286,16.01063767]
[1772475478704,15.83879209,87.345,87.286,26.31963767]
[1772475478903,15.83879209,87.345,87.286,16.01063767]
[1772475479209,10.302,87.344,87.293,10.308]
[1772475479410,15.83879209,87.363,87.291,16.01063767]
[1772475480214,10.3,87.361,87.312,10.306]
[1772475481013,10.3,87.361,87.312,26.31663767]
[1772475481409,324.98646304,87.379,87.317,16.01063767]
[1772475481810,10.299,87.371,87.325,10.304]
[1772475482416,10.298,87.378,87.329,10.304]
[1772475482817,15.83879209,87.372,87.291,16.01063767]
[1772475483315,10.3,87.364,87.319,10.305]
[1772475483515,10.3,87.364,87.31,16.01063767]
[1772475483714,26.13879209,87.364,87.31,16.01063767]
[1772475483918,26.13879209,87.364,87.317,10.305]
[1772475484315,26.13879209,87.364,87.29,7.00247274]
[1772475484316,15.83879209,87.36,87.291,16.01063767]
[1772475484718,15.83879209,87.36,87.315,10.306]
[1772475486119,10.299,87.375,87.325,16.01063767]
[1772475486316,15.83879209,87.378,87.307,16.01063767]
[1772475486619,15.83879209,87.378,87.291,14.09789953]
[1772475486620,10.302,87.348,87.297,10.308]
[1772475487114,309.14767095,87.379,87.291,16.01063767]
[1772475487115,15.83879209,87.378,87.291,16.01063767]
[1772475487418,309.14767095,87.379,87.291,16.01063767]
[1772475487419,15.83879209,87.364,87.31,10.306]
[1772475488211,10.3,87.361,87.31,10.306]
[1772475488415,26.13879209,87.361,87.31,10.306]
[1772475488617,15.83879209,87.36,87.31,10.306]
[1772475490023,15.83879209,87.358,87.31,10.306]
[1772475491118,10.301,87.354,87.31,10.306]
[1772475491423,15.83879209,87.358,87.317,10.305]
[1772475492620,15.83879209,87.358,87.309,10.306]
[1772475492820,10.301,87.357,87.309,10.306]
[1772475493427,15.83879209,87.348,87.287,16.01063767]
[1772475493814,309.14767095,87.379,87.27,7.00247274]
[1772475493815,10.301,87.358,87.306,16.01063767]
[1772475494027,15.83879209,87.363,87.306,16.01063767]
[1772475494622,10.301,87.351,87.306,16.01063767]
[1772475495226,15.83879209,87.363,87.29,16.01063767]
[1772475497329,10.302,87.346,87.298,10.308]
[1772475497730,10.304,87.334,87.29,26.31963767]
[1772475498125,14.40902732,87.348,87.29,16.01063767]
[1772475498324,10.303,87.339,87.298,10.308]
[1772475498526,10.303,87.339,87.29,16.01063767]
[1772475499029,10.304,87.332,87.29,16.01063767]
[1772475501535,14.40902732,87.364,87.297,15.12460078]
[1772475502135,14.40902732,87.364,87.308,10.67719026]
[1772475503235,10.302,87.347,87.309,10.67719026]
[1772475503829,14.40902732,87.347,87.309,10.67719026]
[1772475504037,14.40902732,87.347,87.291,10.67719026]
[1772475505033,14.40902732,87.347,87.296,10.67719026]
[1772475505336,10.303,87.34,87.297,10.67719026]
[1772475505538,24.71202732,87.34,87.292,20.98519026]
[1772475505832,14.40902732,87.34,87.3,10.67719026]
[1772475506138,14.40902732,87.34,87.301,10.67719026]
[1772475506437,14.40902732,87.34,87.298,10.67719026]
[1772475506637,14.40902732,87.34,87.292,10.67719026]
[1772475506838,14.40902732,87.34,87.298,10.67719026]
[1772475507138,14.40902732,87.34,87.289,10.67719026]
[1772475507438,14.40902732,87.34,87.284,10.67719026]
[1772475508035,10.304,87.329,87.285,10.309]
[1772475508531,10.304,87.329,87.284,10.67719026]
[1772475508930,10.304,87.329,87.291,10.308]
[1772475510240,24.71302732,87.329,87.29,10.67719026]
[1772475510539,10.305,87.322,87.285,10.67719026]
[1772475510942,10.305,87.322,87.284,10.67719026]
[1772475512138,10.305,87.322,87.283,20.98619026]
[1772475513239,10.305,87.322,87.283,10.67719026]
[1772475514139,10.305,87.322,87.282,20.98719026]
[1772475515340,14.40902732,87.359,87.31,2.79860349]
[1772475516243,14.40902732,87.359,87.31,17.92320427]
[1772475516447,14.40902732,87.359,87.31,15.12460078]
[1772475516841,36.41424897,87.369,87.33,15.12460078]
[1772475518239,36.41424897,87.369,87.331,10.304]
[1772475518843,36.41424897,87.369,87.33,15.12460078]
[1772475520146,36.41424897,87.369,87.331,10.304]
[1772475520346,14.40902732,87.389,87.338,15.12460078]
[1772475521145,14.40902732,87.389,87.337,10.67719026]
[1772475521146,14.40902732,87.389,87.335,10.67719026]
[1772475521347,14.40902732,87.389,87.326,10.67719026]
[1772475521545,14.40902732,87.369,87.323,15.12460078]
[1772475522150,10.3,87.362,87.323,15.12460078]
[1772475522647,304.7953545,87.388,87.32,0.00019026]
[1772475522648,10.303,87.336,87.32,0.00019026]
[1772475522946,10.303,87.336,87.298,21.27118328]
[1772475522947,10.303,87.336,87.294,15.12460078]
[1772475523140,14.40902732,87.347,87.294,15.12460078]
[1772475525051,10.303,87.336,87.294,15.12460078]
[1772475526851,14.40902732,87.364,87.294,15.12460078]
[1772475527855,14.40902732,87.364,87.303,14.45089231]
[1772475528047,14.40902732,87.364,87.283,14.09789953]
[1772475528048,14.40902732,87.364,87.288,14.45089231]
[1772475528254,13.80803896,87.345,87.288,14.45089231]
[1772475528844,10.302,87.343,87.288,14.45089231]
[1772475529045,13.80803896,87.375,87.298,14.45089231]
[1772475530256,10.301,87.351,87.301,10.307]
[1772475530458,13.80803896,87.361,87.302,14.45089231]
[1772475530756,10.302,87.35,87.302,14.45089231]
[1772475530955,13.80803896,87.361,87.302,14.45089231]
[1772475532247,10.302,87.344,87.302,14.45089231]
[1772475532850,10.302,87.344,87.283,14.09789953]
[1772475532851,13.80803896,87.344,87.283,14.09789953]
[1772475533161,13.80803896,87.344,87.271,14.45089231]
[1772475533558,13.80803896,87.322,87.271,14.45089231]
[1772475534159,10.306,87.313,87.271,14.45089231]
[1772475536558,13.80803896,87.322,87.255,14.45089231]
[1772475537060,10.307,87.3,87.258,10.312]
[1772475538360,20.603,87.352,87.274,14.45089231]
[1772475538361,13.80803896,87.351,87.274,14.45089231]
[1772475538560,20.604,87.349,87.274,14.45089231]
[1772475538861,13.80803896,87.348,87.274,14.45089231]
[1772475539162,10.306,87.309,87.274,14.45089231]
[1772475540359,10.306,87.316,87.274,14.45089231]
[1772475540562,13.80803896,87.338,87.274,14.45089231]
[1772475540761,10.303,87.336,87.285,14.45089231]
[1772475540964,13.80803896,87.367,87.285,14.45089231]
[1772475541155,51.046761,87.384,87.301,14.45089231]
[1772475541356,51.046761,87.384,87.3,6.99093016]
[1772475541357,51.046761,87.384,87.305,14.45089231]
[1772475541564,51.046761,87.384,87.321,14.45089231]
[1772475541764,13.80803896,87.383,87.306,14.45089231]
[1772475541957,13.80803896,87.362,87.306,14.45089231]
[1772475542867,13.80803896,87.383,87.306,14.45089231]
[1772475543161,13.80803896,87.383,87.311,14.45089231]
[1772475544367,10.298,87.38,87.315,14.45089231]
[1772475545064,13.80803896,87.371,87.301,28.54879184]
[1772475545264,13.80803896,87.371,87.301,14.45089231]
[1772475545468,13.80803896,87.371,87.282,14.45089231]
[1772475545768,13.80803896,87.369,87.282,14.45089231]
[1772475545968,13.80803896,87.351,87.284,14.45089231]
[1772475546169,311.46803408,87.383,87.285,14.45089231]
[1772475546170,13.80803896,87.369,87.285,14.45089231]
[1772475546366,13.80803896,87.369,87.286,14.45089231]
[1772475547064,13.80803896,87.369,87.298,14.45089231]
[1772475547560,10.302,87.348,87.298,14.45089231]
[1772475548165,13.80803896,87.349,87.298,14.45089231]
[1772475548166,10.303,87.341,87.298,14.45089231]
[1772475548569,24.11003896,87.349,87.298,14.45089231]
[1772475549468,10.303,87.342,87.298,14.45089231]
[1772475551865,10.302,87.35,87.298,14.45089231]
[1772475552070,13.80803896,87.382,87.298,14.45089231]
[1772475552266,13.80803896,87.343,87.286,10.309]
[1772475552571,13.80803896,87.343,87.267,14.45089231]
[1772475552767,6.99093016,87.35,87.25,14.45089231]
[1772475552768,13.80803896,87.311,87.25,14.45089231]
[1772475553774,10.307,87.304,87.25,14.45089231]
[1772475554974,13.80803896,87.311,87.252,14.45089231]
[1772475556671,10.307,87.306,87.254,14.36779325]
[1772475557266,13.16669793,87.314,87.254,14.36779325]
[1772475557472,13.16669793,87.314,87.238,13.81704524]
[1772475558669,10.309,87.289,87.238,13.81704524]
[1772475559273,10.309,87.289,87.24,13.81704524]
[1772475560573,10.308,87.297,87.25,2.80057788]
[1772475560971,10.309,87.29,87.25,2.80057788]
[1772475561167,13.16669793,87.3,87.244,13.81704524]
[1772475561570,13.16669793,87.3,87.25,2.80057788]
[1772475562277,10.308,87.298,87.25,2.80057788]
[1772475562773,2.80057788,87.29,87.229,13.81704524]
[1772475562977,13.16669793,87.289,87.23,16.61762312]
[1772475563179,13.16669793,87.289,87.24,2.80057788]
[1772475563576,13.16669793,87.309,87.26,2.80057788]
[1772475564578,10.308,87.298,87.254,24.13004524]
[1772475565280,10.308,87.298,87.255,13.81704524]
[1772475565676,10.309,87.29,87.231,13.81704524]
[1772475566178,23.47569793,87.29,87.231,13.81704524]
[1772475566373,13.16669793,87.289,87.231,13.81704524]
[1772475566779,13.16669793,87.289,87.212,13.81704524]
[1772475567078,10.312,87.259,87.212,13.81704524]
[1772475567273,13.16669793,87.271,87.212,13.81704524]
[1772475567476,37.1624252,87.318,87.236,13.81704524]
[1772475567477,13.16669793,87.317,87.236,13.81704524]
[1772475567980,13.16669793,87.316,87.266,10.311]
[1772475568181,13.16669793,87.354,87.271,13.81704524]
[1772475568582,13.16669793,87.354,87.281,13.81704524]
[1772475569684,10.302,87.345,87.281,13.81704524]
[1772475570183,10.302,87.345,87.291,13.81704524]
[1772475570683,23.46769793,87.354,87.291,13.81704524]
[1772475571884,10.302,87.349,87.294,10.308]
[1772475572184,10.302,87.349,87.294,24.12504524]
[1772475572783,23.46869793,87.349,87.294,24.12504524]
[1772475573787,10.302,87.347,87.294,24.12504524]
[1772475573989,13.16669793,87.347,87.302,10.307]
[1772475575684,13.16669793,87.368,87.311,24.12304524]
[1772475575886,13.16669793,87.354,87.295,13.81704524]
[1772475576584,13.16669793,87.344,87.28,20.80970067]
[1772475577188,13.16669793,87.344,87.251,21.27118328]
[1772475577189,13.16669793,87.332,87.264,13.81704524]
[1772475578289,23.47069793,87.33,87.281,13.81704524]
[1772475578483,13.16669793,87.346,87.281,13.81704524]
[1772475579091,10.302,87.344,87.29,13.81704524]
[1772475580189,10.302,87.344,87.292,10.308]
[1772475580388,10.302,87.344,87.292,24.12504524]
[1772475580890,10.302,87.344,87.295,10.308]
[1772475581087,10.302,87.344,87.296,13.81704524]
[1772475581690,10.303,87.34,87.296,13.81704524]
[1772475582184,10.304,87.333,87.296,13.81704524]
[1772475582386,13.16669793,87.332,87.281,24.12704524]
[1772475583188,10.304,87.329,87.281,24.12704524]
[1772475583996,13.16669793,87.332,87.289,10.309]
[1772475586193,13.16669793,87.332,87.29,13.81704524]
[1772475586392,10.302,87.345,87.292,13.81704524]
[1772475586594,10.302,87.345,87.3,2.79741366]
[1772475587095,13.16669793,87.347,87.303,13.81704524]
[1772475589102,13.16669793,87.347,87.288,10.64017114]
[1772475589103,10.301,87.359,87.32,2.79741366]
[1772475589394,10.301,87.359,87.275,20.621]
[1772475589395,13.34139735,87.38,87.33,2.79741366]
[1772475589898,13.34139735,87.38,87.321,13.11157264]
[1772475590099,10.3,87.366,87.322,10.305]
[1772475590296,16.13881101,87.38,87.31,2.79741366]
[1772475590599,13.34139735,87.369,87.31,2.79741366]
[1772475591001,10.3,87.359,87.31,2.79741366]
[1772475591301,23.64139735,87.359,87.31,2.79741366]
[1772475591496,13.34139735,87.358,87.306,13.11157264]
[1772475591702,13.34139735,87.349,87.291,13.11157264]
[1772475593298,10.303,87.341,87.291,13.11157264]
[1772475593802,23.64439735,87.341,87.291,13.11157264]
[1772475594904,13.34139735,87.356,87.301,13.11157264]
[1772475596406,10.302,87.343,87.301,13.11157264]
[1772475597101,10.303,87.341,87.29,13.11157264]
[1772475597304,13.34139735,87.34,87.29,15.9089863]
[1772475597903,13.34139735,87.34,87.3,2.79741366]
[1772475598501,13.34139735,87.34,87.3,13.10441366]
[1772475598705,16.13881101,87.34,87.281,10.64017114]
[1772475598900,16.13881101,87.34,87.276,13.11157264]
[1772475599300,10.305,87.318,87.276,13.11157264]
[1772475600404,13.34139735,87.326,87.28,15.9089863]
[1772475600805,10.304,87.329,87.29,2.79741366]
[1772475601006,10.303,87.336,87.29,15.9089863]
[1772475601195,13.34139735,87.341,87.3,2.79741366]
[1772475601399,13.34139735,87.359,87.31,2.79741366]
[1772475602409,13.34139735,87.359,87.269,21.27118328]
[1772475602410,2.79741366,87.38,87.32,2.79741366]
[1772475602706,13.34139735,87.379,87.313,13.11157264]
[1772475602897,13.34139735,87.379,87.319,13.11157264]
[1772475603403,13.34139735,87.379,87.303,13.11157264]
[1772475603603,10.298,87.377,87.326,13.11157264]
[1772475604003,13.34139735,87.379,87.326,13.11157264]
[1772475605302,37.25591737,87.389,87.326,13.11157264]
[1772475605609,37.25591737,87.389,87.332,13.11157264]
[1772475605909,23.63939735,87.382,87.336,13.11157264]
[1772475607007,13.34139735,87.382,87.336,13.11157264]
[1772475607210,47.55291737,87.389,87.336,13.11157264]
[1772475607709,47.55291737,87.389,87.34,13.11157264]
[1772475608702,13.34139735,87.381,87.334,10.303]
[1772475611405,13.34139735,87.381,87.325,23.75174378]
[1772475611406,13.34139735,87.379,87.327,10.64017114]
[1772475611699,13.34139735,87.379,87.328,13.11157264]
[1772475611903,13.34139735,87.379,87.337,13.11157264]
[1772475612111,311.46803408,87.383,87.338,10.303]
[1772475612311,311.46803408,87.383,87.339,10.64017114]
[1772475612509,311.46803408,87.383,87.349,13.11157264]
[1772475612711,13.34139735,87.409,87.349,13.11157264]
[1772475613009,13.34139735,87.441,87.388,10.297]
[1772475613203,13.34139735,87.441,87.383,13.11157264]
[1772475613715,13.34139735,87.441,87.394,10.296]
[1772475613917,13.34139735,87.441,87.368,13.11157264]
[1772475614409,10.292,87.433,87.375,10.299]
[1772475614609,13.34139735,87.432,87.35,13.11157264]
[1772475615308,10.295,87.407,87.355,10.301]
[1772475615812,13.34139735,87.413,87.362,10.3]
[1772475616012,13.34139735,87.413,87.341,10.64017114]
[1772475616210,13.34139735,87.413,87.334,13.65866142]
[1772475616407,13.34139735,87.413,87.292,21.27118328]
[1772475616408,13.34441703,87.395,87.317,13.65866142]
[1772475617715,12.93007136,87.375,87.317,13.65866142]
[1772475618310,12.93007136,87.374,87.325,10.304]
[1772475618511,12.93007136,87.374,87.3,12.57626839]
[1772475619111,12.93007136,87.352,87.324,197.01391174]
[1772475619414,12.93007136,87.352,87.267,79.0733895]
[1772475619805,10.303,87.338,87.281,10.31]
[1772475620004,12.93007136,87.352,87.267,79.0733895]
[1772475620405,10.304,87.328,87.272,10.311]
[1772475621511,36.92695845,87.365,87.272,10.311]
[1772475621512,36.92695845,87.365,87.272,89.3843895]
[1772475621716,36.92695845,87.365,87.289,10.309]
[1772475622714,36.92695845,87.365,87.278,79.0733895]
[1772475623211,36.92695845,87.365,87.291,79.0733895]
[1772475623411,308.90673316,87.368,87.319,79.0733895]
[1772475623815,10.298,87.383,87.321,79.0733895]
[1772475624211,183.12,87.424,87.321,79.0733895]
[1772475625015,10.298,87.383,87.327,79.0733895]
[1772475626816,10.299,87.374,87.327,79.0733895]
[1772475627022,6.98974617,87.41,87.304,79.0733895]
[1772475627522,20.59,87.408,87.304,89.3803895]
[1772475627924,20.59,87.408,87.304,79.0733895]
[1772475628120,6.98974617,87.41,87.314,79.0733895]
[1772475629220,6.98974617,87.41,87.322,79.0733895]
[1772475629221,10.298,87.379,87.322,79.0733895]
[1772475630227,10.298,87.379,87.324,79.0733895]
[1772475630719,10.298,87.379,87.317,10.64017114]
[1772475630720,10.298,87.379,87.326,79.0733895]
[1772475631020,37.06546143,87.416,87.316,79.0733895]
[1772475631824,20.59,87.409,87.316,79.0733895]
[1772475632025,37.06546143,87.416,87.316,79.0733895]
[1772475632229,37.06546143,87.416,87.316,89.71356064]
[1772475632421,37.06546143,87.416,87.322,79.0733895]
[1772475632617,37.06546143,87.416,87.337,79.0733895]
[1772475633326,37.06546143,87.416,87.355,79.0733895]
[1772475633327,10.295,87.409,87.355,79.0733895]
[1772475633528,37.06546143,87.416,87.355,79.0733895]
[1772475633728,37.06546143,87.416,87.336,79.0733895]
[1772475634528,10.296,87.397,87.347,79.0733895]
[1772475636230,10.296,87.397,87.35,10.301]
[1772475636434,10.295,87.405,87.35,89.3743895]
[1772475636628,10.295,87.405,87.35,79.0733895]
[1772475636828,10.297,87.388,87.35,79.0733895]
[1772475637137,37.06546143,87.416,87.331,79.0733895]
[1772475637837,20.589,87.414,87.331,79.0733895]
[1772475638530,37.06546143,87.416,87.34,79.0733895]
[1772475640032,20.589,87.414,87.328,10.64017114]
[1772475640232,20.589,87.414,87.317,10.64017114]
[1772475640622,10.298,87.378,87.329,10.304]
[1772475641528,10.298,87.378,87.323,10.64017114]
[1772475641529,10.299,87.371,87.321,10.305]
[1772475642036,10.299,87.371,87.323,10.305]
[1772475642230,10.299,87.371,87.324,70.5217952]
[1772475642431,10.298,87.379,87.324,70.5217952]
[1772475642635,20.589,87.414,87.326,70.5217952]
[1772475643436,10.299,87.374,87.326,70.5217952]
[1772475646136,6.98754507,87.38,87.307,0.00017114]
[1772475646335,479.74903857,87.4,87.301,70.51777721]
[1772475646838,10.301,87.356,87.306,70.51777721]
[1772475647032,479.74903857,87.4,87.306,70.51777721]
[1772475647238,479.74903857,87.4,87.321,70.51784365]
[1772475647437,10.298,87.384,87.321,70.51784365]
[1772475648244,479.74903857,87.4,87.313,70.84186694]
[1772475648845,10.3,87.366,87.313,70.84186694]
[1772475651139,10.299,87.374,87.315,70.78812148]
[1772475651436,479.74903857,87.4,87.315,84.88602101]
[1772475651629,479.74903857,87.4,87.317,70.78812148]
[1772475652835,10.298,87.384,87.333,10.303]
[1772475653041,10.298,87.384,87.334,70.92502309]
[1772475657340,10.298,87.378,87.334,70.92502309]
[1772475657541,10.298,87.378,87.335,10.303]
[1772475657746,10.297,87.386,87.335,81.25214894]
[1772475659048,10.298,87.38,87.335,81.25214894]
[1772475660442,10.298,87.38,87.293,20.617]
[1772475660443,6.98754507,87.39,87.306,70.93027319]
[1772475660842,20.595,87.385,87.306,70.93027319]
[1772475661039,479.74903857,87.4,87.306,70.93027319]
[1772475661440,479.74903857,87.4,87.294,14.09789953]
[1772475661441,10.299,87.372,87.324,70.93112367]
[1772475661643,479.74903857,87.4,87.33,6.98754507]
[1772475661842,479.74903857,87.4,87.331,70.93112367]
[1772475662243,479.74903857,87.4,87.338,70.9183103]
[1772475663249,10.298,87.382,87.34,10.303]
[1772475664560,479.74903857,87.4,87.322,71.01193798]
[1772475665257,479.74903857,87.4,87.324,10.305]
[1772475665651,479.74903857,87.4,87.324,81.31789354]
[1772475665851,479.74903857,87.4,87.324,71.01289354]
[1772475667255,10.3,87.365,87.324,71.01289354]
[1772475667455,479.74903857,87.4,87.327,71.00320091]
[1772475667959,479.74903857,87.4,87.31,6.98754507]
[1772475667960,479.74903857,87.4,87.318,14.09789953]
[1772475668159,6.98754507,87.39,87.308,71.00320091]
[1772475668355,10.55254096,87.379,87.291,71.03049324]
[1772475668560,6.98754507,87.37,87.291,71.03049324]
[1772475668864,10.55254096,87.367,87.291,71.03049324]
[1772475669157,20.6,87.364,87.291,71.03049324]
[1772475669358,160.182,87.389,87.291,71.03049324]
[1772475669359,10.55254096,87.385,87.291,71.03049324]
[1772475669562,10.302,87.347,87.3,71.03142785]
[1772475670358,10.301,87.355,87.303,71.0316382]
[1772475670561,13.99193492,87.404,87.303,85.12953773]
[1772475670562,10.55254096,87.404,87.303,85.12953773]
[1772475670762,37.06546143,87.416,87.32,6.98754507]
[1772475670963,37.06546143,87.416,87.321,71.0316382]
[1772475671163,10.298,87.382,87.335,10.303]
[1772475671360,10.298,87.382,87.336,71.03254905]
[1772475672458,10.297,87.391,87.338,71.00312749]
[1772475673364,10.298,87.384,87.341,71.00396663]
[1772475674766,10.298,87.377,87.341,71.00396663]
[1772475675065,17.54008603,87.41,87.321,70.97258236]
[1772475675264,10.55254096,87.405,87.321,70.97258236]
[1772475675963,10.55254096,87.406,87.321,70.97258236]
[1772475676167,9.10131817,87.399,87.321,70.97258236]
[1772475676468,10.301,87.354,87.321,70.97258236]
[1772475677568,10.302,87.347,87.321,70.97258236]
[1772475677767,9.10131817,87.39,87.321,70.97258236]
[1772475677969,9.10131817,87.409,87.321,70.97258236]
[1772475678172,9.10131817,87.415,87.321,70.97258236]
[1772475678367,19.65385913,87.415,87.321,70.97258236]
[1772475678569,11.46,87.414,87.321,70.97258236]
[1772475678869,20.589,87.413,87.323,70.93096398]
[1772475679069,20.589,87.413,87.31,6.98754507]
[1772475679070,9.10131817,87.415,87.331,70.93096398]
[1772475679269,9.10829613,87.415,87.331,70.93096398]
[1772475679766,37.06546143,87.416,87.348,70.93161074]
[1772475679968,37.06546143,87.416,87.351,70.93161074]
[1772475680174,37.06546143,87.416,87.371,70.92295454]
[1772475680771,37.06546143,87.416,87.373,70.92295454]
[1772475681081,159.947,87.518,87.373,70.92295454]
[1772475681082,6.23213274,87.475,87.373,70.92295454]
[1772475681676,10.29,87.452,87.399,15.04212132]
[1772475682569,10.29,87.452,87.372,0.02]
[1772475682570,7.22630573,87.456,87.373,15.04212132]
[1772475682870,7.22630573,87.455,87.373,15.04212132]
[1772475683068,7.34004676,87.472,87.373,15.04212132]
[1772475683269,7.34004676,87.472,87.406,15.04212132]
[1772475684365,7.34004676,87.472,87.39,6.98754507]
[1772475684571,7.34004676,87.472,87.39,15.04212132]
[1772475684877,6.98754507,87.47,87.39,15.04212132]
[1772475685077,7.64744378,87.469,87.39,15.04212132]
[1772475686580,7.64744378,87.469,87.392,15.04212132]
[1772475688079,8.14603498,87.451,87.392,15.04212132]
[1772475688479,8.14603498,87.451,87.372,0.02]
[1772475690180,10.293,87.419,87.372,0.02]
[1772475690382,14.6529654,87.434,87.372,0.02]
[1772475690579,14.6529654,87.434,87.372,15.06212132]